bitfinex-derivatives/quotes_SOLF0:USTF0_20250528
["timestamp","ask_amount","ask_price","bid_price","bid_amount"]
[1748405070271,0.03740936,174.79,174.75,0.03761655]
[1748405070672,0.03740936,174.79,174.76,5.7192]
[1748405070876,0.03740936,174.79,174.75,0.03761655]
[1748405071072,0.03740936,174.79,174.76,4.23963958]
[1748405071272,0.03740936,174.79,174.78,5.7187]
[1748405073580,0.03740936,174.79,174.78,9.95833958]
[1748405074269,0.03740936,174.79,174.78,5.7187]
[1748405077476,0.03740936,174.79,174.75,0.03761655]
[1748405078684,5.7189,174.78,174.75,5.75711655]
[1748405078885,0.03740936,174.79,174.75,4.27725613]
[1748405079983,0.03740936,174.79,174.78,5.7187]
[1748405080585,0.03740936,174.79,174.77,5.7188]
[1748405080785,0.03740936,174.79,174.75,0.03761655]
[1748405081578,5.75580936,174.79,174.76,5.719]
[1748405082385,5.7187,174.78,174.76,5.719]
[1748405082581,5.7187,174.78,174.75,5.75711655]
[1748405082780,0.03740936,174.79,174.75,0.03761655]
[1748405084489,5.7191,174.77,174.75,0.03761655]
[1748405085291,5.7191,174.77,174.75,5.75721655]
[1748405085492,5.7187,174.78,174.75,5.75721655]
[1748405089798,5.7187,174.78,174.76,5.7193]
[1748405091197,5.7187,174.78,174.75,5.75711655]
[1748405094699,5.75590936,174.79,174.76,5.719]
[1748405095100,0.03740936,174.79,174.76,5.719]
[1748405095901,5.7188,174.78,174.76,5.719]
[1748405102506,5.7188,174.78,174.75,0.03761655]
[1748405103208,5.75580936,174.79,174.76,5.7193]
[1748405103410,5.75580936,174.79,174.75,0.03761655]
[1748405103411,0.03740936,174.79,174.75,0.03761655]
[1748405104509,0.03740936,174.79,174.77,5.7188]
[1748405105308,0.03740936,174.79,174.75,0.03761655]
[1748405105607,5.75580936,174.79,174.76,5.7193]
[1748405109910,5.75580936,174.79,174.77,5.719]
[1748405110606,5.75580936,174.79,174.76,5.7192]
[1748405118214,5.7187,174.78,174.76,5.7192]
[1748405119114,5.7187,174.78,174.75,5.75711655]
[1748405121517,0.03740936,174.79,174.76,5.7192]
[1748405121721,0.03740936,174.79,174.75,0.03761655]
[1748405122817,5.7192,174.77,174.75,0.03761655]
[1748405124917,0.03740936,174.79,174.75,0.03761655]
[1748405125815,5.7192,174.77,174.75,0.03761655]
[1748405126016,4.27791611,174.79,174.75,0.03761655]
[1748405126217,5.7193,174.76,174.75,0.03761655]
[1748405130221,5.7188,174.78,174.75,5.75721655]
[1748405130425,0.03740936,174.79,174.75,4.2781233]
[1748405131621,0.03740936,174.79,174.77,5.7187]
[1748405133022,5.75580936,174.79,174.76,5.7193]
[1748405133225,0.03740936,174.79,174.75,4.2781233]
[1748405133723,0.03740936,174.79,174.77,5.7188]
[1748405140723,0.03740936,174.79,174.76,9.95970675]
[1748405143630,0.03740936,174.79,174.77,5.7189]
[1748405143826,0.03740936,174.79,174.76,4.24050675]
[1748405144131,0.03740936,174.79,174.77,5.719]
[1748405144331,0.03740936,174.79,174.76,4.24050675]
[1748405144830,0.03740936,174.79,174.77,110.04]
[1748405146132,0.03740936,174.79,174.78,5.7187]
[1748405153133,0.03740936,174.79,174.78,9.95920675]
[1748405153936,29.08292351,174.88,174.78,4.24050675]
[1748405153937,239.0,174.86,174.78,4.24050675]
[1748405154236,239.0,174.86,174.82,4.24050675]
[1748405154737,239.03610622,174.86,174.82,4.28120088]
[1748405155039,5.7166,174.85,174.82,4.28120088]
[1748405155738,239.03610622,174.86,174.82,0.04069413]
[1748405155739,5.7169,174.84,174.82,0.04069413]
[1748405161246,5.717,174.83,174.82,0.04069413]
[1748405164953,5.7168,174.84,174.82,0.04069413]
[1748405165454,5.7166,174.85,174.82,9.99850088]
[1748405165650,0.03610622,174.86,174.84,4.24050675]
[1748405167148,0.03610622,174.86,174.84,9.95690675]
[1748405168757,0.03610622,174.86,174.85,5.7164]
[1748405175559,0.03610622,174.86,174.84,143.9566]
[1748405175765,0.03610622,174.86,174.84,142.48050675]
[1748405177464,0.03610622,174.86,174.84,148.19710675]
[1748405178555,0.03610622,174.86,174.85,5.7164]
[1748405194679,7.6977,174.91,174.88,5.7153]
[1748405194878,239.0,174.92,174.88,4.24050675]
[1748405195579,239.0,174.92,174.89,5.7148]
[1748405195779,239.04361524,174.92,174.89,5.75223394]
[1748405196768,239.04361524,174.92,174.91,5.7144]
[1748405196981,0.04361524,174.92,174.91,115.6544]
[1748405200178,30.2535,175.0,174.95,5.7129]
[1748405200476,5.7123,174.98,174.95,4.24050675]
[1748405200678,34.49400675,175.0,174.92,5.714]
[1748405200883,5.7133,174.95,174.93,4.24050675]
[1748405202580,5.74904729,174.96,174.93,4.24050675]
[1748405204183,5.7132,174.95,174.93,4.24050675]
[1748405204578,0.03614729,174.96,174.93,4.24050675]
[1748405204776,5.74904729,174.96,174.93,4.24050675]
[1748405204981,0.03614729,174.96,174.93,4.24050675]
[1748405205173,0.03614729,174.96,174.93,9.95420675]
[1748405206887,0.03614729,174.96,174.95,4.24050675]
[1748405208988,0.03614729,174.96,174.95,9.95360675]
[1748405210590,0.03614729,174.96,174.95,4.24050675]
[1748405211986,0.03614729,174.96,174.94,5.7134]
[1748405212688,0.03614729,174.96,174.95,5.7131]
[1748405215382,0.03614729,174.96,174.94,5.7132]
[1748405219587,0.03614729,174.96,174.93,4.24050675]
[1748405220296,5.7133,174.95,174.93,4.24050675]
[1748405221495,5.74904729,174.96,174.93,9.95420675]
[1748405224598,5.7131,174.95,174.93,4.24050675]
[1748405225096,0.03614729,174.96,174.93,4.24050675]
[1748405225396,0.03614729,174.96,174.92,0.04234289]
[1748405225597,0.03614729,174.96,174.94,4.24050675]
[1748405225799,0.03614729,174.96,174.94,9.95380675]
[1748405226100,0.03614729,174.96,174.94,4.24050675]
[1748405226901,0.03614729,174.96,174.95,5.7131]
[1748405228699,78.1398716,175.01,174.99,5.7116]
[1748405228900,5.7106,175.03,174.99,5.7116]
[1748405229105,5.7103,175.04,175.0,5.7114]
[1748405229602,5.74795513,175.04,175.0,5.7495636]
[1748405229992,0.03765513,175.04,175.0,0.0381636]
[1748405230199,0.03765513,175.04,175.01,4.24050675]
[1748405230599,0.03765513,175.04,175.02,5.7105]
[1748405231202,0.03765513,175.04,175.01,5.711]
[1748405231498,0.03765513,175.04,175.01,9.95150675]
[1748405234401,0.03765513,175.04,175.0,5.7494636]
[1748405234604,0.03765513,175.04,175.0,9.98997035]
[1748405234802,0.03765513,175.04,175.0,0.0381636]
[1748405235107,5.7111,175.01,175.0,0.0381636]
[1748405235503,9.96050675,175.01,174.9,32.44050675]
[1748405235705,4.24050675,174.96,174.9,38.15510675]
[1748405236003,5.7137,174.94,174.9,32.44050675]
[1748405236406,0.04243749,174.94,174.9,32.48255892]
[1748405236906,0.04243749,174.94,174.91,5.7143]
[1748405237207,0.04243749,174.94,174.9,32.48255892]
[1748405237594,5.75593749,174.94,174.9,38.19705892]
[1748405237806,5.75593749,174.94,174.9,32.48255892]
[1748405238101,5.75593749,174.94,174.9,28.24205217]
[1748405238299,0.04243749,174.94,174.9,28.24205217]
[1748405238904,5.7144,174.91,174.9,0.04205217]
[1748405240108,5.7157,174.87,174.86,28.2]
[1748405240502,5.7157,174.87,174.83,28.22]
[1748405241011,5.7157,174.87,174.84,5.7164]
[1748405241207,0.04159251,174.87,174.84,0.04162724]
[1748405241714,0.04159251,174.87,174.86,5.7159]
[1748405246912,0.04159251,174.87,174.85,5.7163]
[1748405247110,0.04159251,174.87,174.84,0.04162724]
[1748405247716,0.04159251,174.87,174.78,28.24]
[1748405248017,1.97,174.87,174.79,5.7181]
[1748405248315,5.7169,174.84,174.79,5.7181]
[1748405248616,1.97,174.87,174.79,5.7181]
[1748405248816,0.03852151,174.83,174.8,0.04148211]
[1748405249016,5.75562151,174.83,174.8,0.04148211]
[1748405249222,0.03852151,174.83,174.8,0.04148211]
[1748405249419,0.03852151,174.83,174.73,28.24]
[1748405249617,3.9444,174.83,174.73,28.24]
[1748405250324,5.7192,174.77,174.73,28.24]
[1748405250622,0.03707412,174.77,174.73,28.28197149]
[1748405251118,0.03707412,174.77,174.75,5.7194]
[1748405251721,0.03707412,174.77,174.76,5.7193]
[1748405260227,0.03707412,174.77,174.75,5.7196]
[1748405260622,0.03707412,174.77,174.73,28.28197149]
[1748405260830,78.1398716,174.83,174.8,5.7179]
[1748405261026,5.7168,174.84,174.8,5.7179]
[1748405261426,5.7165,174.85,174.81,5.7177]
[1748405261625,5.7165,174.85,174.77,28.26]
[1748405261828,0.04048956,174.83,174.79,0.04033048]
[1748405262128,0.04048956,174.83,174.79,5.75843048]
[1748405262530,0.04048956,174.83,174.79,0.04033048]
[1748405263327,5.7176,174.82,174.79,0.04033048]
[1748405263828,5.75758956,174.83,174.79,0.04033048]
[1748405264230,0.04048956,174.83,174.79,0.04033048]
[1748405264426,5.7176,174.82,174.79,0.04033048]
[1748405264825,17.1378,174.97,174.8,6.61395582]
[1748405265032,1.9104,174.96,174.86,6.61414762]
[1748405265231,1.9104,174.96,174.87,28.26]
[1748405265827,5.7144,174.91,174.9,0.04164868]
[1748405268131,5.7144,174.91,174.9,4.868e-05]
[1748405268432,33.98,174.91,174.82,28.26]
[1748405268628,8.49544762,174.9,174.82,28.26]
[1748405269230,0.03655958,174.88,174.84,0.04022328]
[1748405269434,5.7164,174.85,174.84,0.04022328]
[1748405280944,5.7164,174.85,174.84,2.328e-05]
[1748405281146,84.75401922,174.87,174.78,28.42]
[1748405281341,6.61414762,174.83,174.75,28.42]
[1748405281740,5.7189,174.78,174.75,34.1394]
[1748405282141,5.75676684,174.78,174.75,34.18153571]
[1748405282340,0.03786684,174.78,174.75,28.46213571]
[1748405283151,0.03786684,174.78,174.76,5.7193]
[1748405284349,0.03786684,174.78,174.77,5.719]
[1748405285543,0.03786684,174.78,174.75,0.04213571]
[1748405286140,5.7193,174.76,174.75,0.04213571]
[1748405297651,6.62868448,174.76,174.68,28.44]
[1748405297852,6.62868448,174.76,174.63,117.00868448]
[1748405297853,78.1398716,174.75,174.67,28.44]
[1748405298060,5.7215,174.7,174.67,34.1621]
[1748405298253,78.1398716,174.75,174.67,34.1621]
[1748405298454,78.1398716,174.74,174.67,28.44]
[1748405298654,0.04144752,174.73,174.69,0.03808398]
[1748405299153,5.7207,174.72,174.69,5.75958398]
[1748405300452,0.04144752,174.73,174.69,5.75958398]
[1748405301254,5.7213,174.7,174.69,0.03808398]
[1748405302552,0.04144752,174.73,174.63,28.44]
[1748405302757,78.1398716,174.74,174.63,28.44]
[1748405303061,78.1398716,174.74,174.65,5.7228]
[1748405303253,78.1398716,174.74,174.63,28.44]
[1748405303660,0.04308791,174.7,174.67,0.04038348]
[1748405303964,5.7216,174.69,174.67,0.04038348]
[1748405304163,0.04308791,174.7,174.67,0.04038348]
[1748405304757,0.04308791,174.7,174.67,28.56038348]
[1748405304959,0.04308791,174.7,174.69,5.7216]
[1748405306159,0.04308791,174.7,174.68,5.7218]
[1748405306562,0.04308791,174.7,174.67,28.56038348]
[1748405307265,5.76458791,174.7,174.67,34.28248348]
[1748405307876,5.7217,174.69,174.67,28.56038348]
[1748405308076,0.04308791,174.7,174.67,0.04038348]
[1748405309074,5.7219,174.68,174.67,0.04038348]
[1748405310368,5.7233,174.64,174.61,5.7241]
[1748405311068,5.723,174.65,174.61,5.7241]
[1748405311274,6.62868448,174.69,174.61,5.7241]
[1748405311470,0.03797948,174.67,174.63,0.04333472]
[1748405311672,5.7232,174.65,174.63,0.04333472]
[1748405311867,0.03797948,174.67,174.63,0.04333472]
[1748405312266,5.7227,174.66,174.63,0.04333472]
[1748405312472,5.7227,174.66,174.63,5.76673472]
[1748405315076,5.76027948,174.67,174.64,5.7231]
[1748405315279,5.76027948,174.67,174.63,0.04333472]
[1748405315280,0.03797948,174.67,174.63,28.58333472]
[1748405316975,0.03797948,174.67,174.66,5.7226]
[1748405321397,0.03797948,174.67,174.64,5.7229]
[1748405321602,0.03797948,174.67,174.63,28.58333472]
[1748405321901,5.7232,174.64,174.63,28.58333472]
[1748405322094,5.7232,174.64,174.63,0.04333472]
[1748405322294,0.03797948,174.67,174.63,0.04333472]
[1748405322691,5.7231,174.65,174.63,0.04333472]
[1748405325292,0.03797948,174.67,174.63,0.04333472]
[1748405325496,6.66666396,174.67,174.6,28.54]
[1748405325698,6.66666396,174.67,174.57,28.54]
[1748405325891,5.7245,174.61,174.58,5.725]
[1748405326097,8.64138448,174.66,174.58,5.725]
[1748405326595,5.75955655,174.64,174.59,5.7249]
[1748405327000,0.03605655,174.64,174.6,5.7245]
[1748405327689,0.03605655,174.64,174.56,28.54]
[1748405329100,0.03605655,174.64,174.62,5.7237]
[1748405332107,0.03605655,174.64,174.6,28.54]
[1748405332903,0.03605655,174.64,174.63,5.7236]
[1748405334807,0.03605655,174.64,174.6,28.54]
[1748405335398,0.03605655,174.64,174.62,5.7236]
[1748405336804,0.03605655,174.64,174.63,5.7236]
[1748405341908,78.1398716,174.69,174.68,5.7219]
[1748405342110,78.1398716,174.74,174.65,28.72]
[1748405342312,78.1398716,174.74,174.66,28.72]
[1748405342609,78.1398716,174.74,174.69,5.7214]
[1748405342813,78.1398716,174.74,174.66,28.72]
[1748405342814,5.7207,174.72,174.66,28.72]
[1748405343012,5.76102324,174.72,174.68,5.76063756]
[1748405343212,0.04032324,174.72,174.68,0.03893756]
[1748405343710,0.04032324,174.72,174.69,5.7214]
[1748405344306,5.76092324,174.72,174.69,5.7214]
[1748405344707,5.76092324,174.72,174.68,0.03893756]
[1748405344708,0.04032324,174.72,174.68,0.03893756]
[1748405344914,5.721,174.71,174.68,0.03893756]
[1748405345311,0.04032324,174.72,174.68,0.03893756]
[1748405346015,5.7214,174.7,174.68,0.03893756]
[1748405350218,5.7216,174.69,174.68,0.03893756]
[1748405362021,5.7227,174.66,174.63,34.4235]
[1748405362221,5.7227,174.66,174.63,5.7235]
[1748405362522,5.7227,174.66,174.63,34.4234]
[1748405362719,5.7227,174.66,174.61,1.929]
[1748405362916,5.7227,174.66,174.62,28.7]
[1748405363116,0.04403987,174.65,174.62,28.7]
[1748405363323,0.04403987,174.65,174.63,5.7234]
[1748405364626,0.04403987,174.65,174.64,5.7232]
[1748405365523,0.04403987,174.65,174.62,28.7]
[1748405365730,0.04403987,174.65,174.63,5.7234]
[1748405371122,0.04403987,174.65,174.62,28.7]
[1748405371526,0.04403987,174.65,174.59,522.96]
[1748405371728,5.7239,174.62,174.59,528.6847]
[1748405371927,0.04403987,174.65,174.59,522.96]
[1748405372329,0.04403987,174.65,174.59,28.58]
[1748405373623,5.7242,174.62,174.59,34.3048]
[1748405374332,0.04403987,174.65,174.59,28.58]
[1748405374831,5.7236,174.63,174.59,28.58]
[1748405375224,0.04403987,174.65,174.59,28.58]
[1748405375532,5.7243,174.61,174.59,28.58]
[1748405376030,5.724,174.62,174.59,28.58]
[1748405376928,5.724,174.62,174.6,5.7245]
[1748405378028,5.724,174.62,174.59,34.3048]
[1748405381334,5.724,174.62,174.59,28.58]
[1748405382636,5.7243,174.61,174.59,28.58]
[1748405383332,0.04403987,174.65,174.59,28.58]
[1748405383535,5.724,174.62,174.59,34.3049]
[1748405383737,5.724,174.62,174.59,28.58]
[1748405384636,5.7244,174.61,174.59,28.58]
[1748405387441,5.7245,174.6,174.59,28.58]
[1748405390743,0.03678402,174.61,174.59,34.3049]
[1748405391946,5.76098402,174.61,174.59,34.3049]
[1748405394047,5.76098402,174.61,174.59,28.58]
[1748405394548,5.7245,174.6,174.59,28.58]
[1748405395146,5.76108402,174.61,174.59,28.58]
[1748405395351,0.03678402,174.61,174.59,28.58]
[1748405396150,5.7245,174.6,174.59,28.58]
[1748405399554,5.76108402,174.61,174.59,28.58]
[1748405399754,0.03678402,174.61,174.59,28.58]
[1748405400661,0.03678402,174.61,174.6,5.7245]
[1748405401260,0.03678402,174.61,174.59,28.58]
[1748405401261,0.03678402,174.61,174.59,34.3047]
[1748405401961,5.76108402,174.61,174.59,34.3047]
[1748405403061,5.76108402,174.61,174.59,28.58]
[1748405406766,5.7245,174.6,174.59,28.58]
[1748405409974,5.76108402,174.61,174.59,28.58]
[1748405411474,5.7245,174.6,174.59,28.58]
[1748405414975,5.7245,174.6,174.58,5.7251]
[1748405417776,5.7245,174.6,174.57,34.3454]
[1748405419678,0.03678402,174.61,174.57,28.62]
[1748405420082,0.03678402,174.61,174.58,5.7251]
[1748405420380,5.76108402,174.61,174.58,5.7251]
[1748405420575,0.03678402,174.61,174.6,5.7245]
[1748405420878,0.03678402,174.61,174.57,28.62]
[1748405421279,0.03678402,174.61,174.59,5.7246]
[1748405422277,5.76098402,174.61,174.58,5.7251]
[1748405429680,0.03678402,174.61,174.59,5.7249]
[1748405432892,5.76098402,174.61,174.59,5.7249]
[1748405434187,0.03678402,174.61,174.59,5.7249]
[1748405436684,0.03678402,174.61,174.6,5.7245]
[1748405450701,0.03678402,174.61,174.59,5.7247]
[1748405452305,0.03678402,174.61,174.6,5.7245]
[1748405455414,0.03678402,174.61,174.58,28.42]
[1748405456014,0.03678402,174.61,174.59,5.7248]
[1748405457612,5.76098402,174.61,174.58,34.1451]
[1748405461215,5.7247,174.6,174.58,28.42]
[1748405461912,5.76118402,174.61,174.58,28.42]
[1748405462113,5.76118402,174.61,174.58,34.1452]
[1748405465119,5.7246,174.6,174.58,28.42]
[1748405465517,0.03678402,174.61,174.58,28.42]
[1748405465918,0.03678402,174.61,174.59,5.7248]
[1748405466118,0.03678402,174.61,174.58,28.42]
[1748405466918,5.76098402,174.61,174.58,34.145]
[1748405470622,0.03678402,174.61,174.58,28.42]
[1748405471018,0.03678402,174.61,174.59,5.7246]
[1748405471621,5.76108402,174.61,174.58,34.1451]
[1748405471817,0.03678402,174.61,174.58,34.1451]
[1748405472020,0.03678402,174.61,174.58,28.42]
[1748405472219,4.28315712,174.61,174.58,28.42]
[1748405472923,5.7252,174.58,174.56,5.7258]
[1748405473118,4.28315712,174.61,174.56,5.7258]
[1748405473515,4.28315712,174.61,174.55,34.106]
[1748405473823,4.28315712,174.61,174.55,28.38]
[1748405474923,5.7254,174.58,174.56,5.7258]
[1748405475323,4.2463731,174.59,174.55,28.38]
[1748405475619,5.7255,174.58,174.55,34.106]
[1748405477726,5.7256,174.57,174.55,34.106]
[1748405478327,5.7253,174.58,174.55,34.106]
[1748405478623,4.2463731,174.59,174.56,5.7257]
[1748405479531,5.7252,174.58,174.55,34.106]
[1748405479728,5.7252,174.58,174.55,28.38]
[1748405480532,9.9712731,174.59,174.55,28.38]
[1748405481027,9.9712731,174.59,174.56,5.7257]
[1748405481227,5.7246,174.6,174.55,28.38]
[1748405481726,4.28315712,174.61,174.57,5.7253]
[1748405481924,10.00745712,174.61,174.55,28.38]
[1748405483424,4.28315712,174.61,174.55,32.6263731]
[1748405484529,5.7247,174.6,174.57,5.7253]
[1748405487431,4.28315712,174.61,174.56,5.7258]
[1748405487432,5.725,174.59,174.56,5.7258]
[1748405487632,5.725,174.59,174.55,28.38]
[1748405488530,5.7252,174.58,174.55,34.1059]
[1748405489033,5.7252,174.58,174.56,5.7258]
[1748405490836,5.725,174.59,174.56,5.7258]
[1748405491040,4.28315712,174.61,174.56,5.7258]
[1748405492337,5.7252,174.59,174.56,5.7258]
[1748405493238,5.7252,174.58,174.56,5.7258]
[1748405496633,5.7252,174.58,174.55,34.106]
[1748405497740,5.7252,174.58,174.56,5.7258]
[1748405498540,5.7252,174.58,174.55,34.1061]
[1748405501041,5.7258,174.56,174.55,28.38]
[1748405501241,4.2463731,174.56,174.48,494.58]
[1748405501541,0.03667003,174.57,174.51,28.34]
[1748405501734,0.03667003,174.57,174.53,5.7266]
[1748405502340,0.03667003,174.57,174.52,5.727]
[1748405502540,4.2463731,174.56,174.52,5.727]
[1748405502741,4.2463731,174.56,174.51,28.34]
[1748405502940,5.7267,174.54,174.51,34.0674]
[1748405503542,9.9730731,174.54,174.51,34.0674]
[1748405506351,4.2463731,174.54,174.51,28.34]
[1748405506943,5.7268,174.53,174.51,28.34]
[1748405508052,82.3862447,174.56,174.51,28.34]
[1748405509354,78.1398716,174.56,174.51,28.34]
[1748405509553,78.1398716,174.56,174.54,5.7263]
[1748405510354,5.76247003,174.57,174.54,5.7263]
[1748405510851,0.03667003,174.57,174.53,5.7267]
[1748405511954,5.7259,174.56,174.53,5.7267]
[1748405514658,5.7263,174.55,174.52,5.727]
[1748405517055,5.7265,174.54,174.51,34.0674]
[1748405517259,0.03667003,174.57,174.51,28.34]
[1748405518258,5.7264,174.55,174.52,5.7271]
[1748405520363,5.7266,174.54,174.51,34.0674]
[1748405520565,4.2463731,174.56,174.51,28.34]
[1748405521054,5.7271,174.53,174.51,28.34]
[1748405521360,4.2463731,174.56,174.51,28.34]
[1748405521558,5.7271,174.53,174.51,28.34]
[1748405522661,5.7267,174.54,174.51,34.0674]
[1748405522858,0.03667003,174.57,174.51,28.34]
[1748405523058,5.7258,174.56,174.51,28.34]
[1748405523665,5.7258,174.56,174.53,5.7266]
[1748405524060,5.7258,174.56,174.51,28.34]
[1748405524453,5.7258,174.56,174.52,4.2463731]
[1748405525962,5.7258,174.56,174.53,5.7266]
[1748405526566,5.76217003,174.57,174.54,5.7264]
[1748405529558,0.03667003,174.57,174.52,4.2463731]
[1748405529759,0.03667003,174.57,174.54,4.2463731]
[1748405529956,0.03667003,174.57,174.56,4.2463731]
[1748405530357,0.03667003,174.57,174.56,9.9721731]
[1748405547685,5.7235,174.64,174.56,4.2463731]
[1748405547884,5.7235,174.64,174.59,4.2463731]
[1748405548182,24.57719144,174.67,174.59,32.5863731]
[1748405548385,4.2463731,174.65,174.59,32.5863731]
[1748405548685,5.7238,174.63,174.6,0.04121244]
[1748405548980,0.03832816,174.64,174.6,0.04121244]
[1748405549679,5.7236,174.63,174.6,0.04121244]
[1748405550781,5.7239,174.62,174.6,0.04121244]
[1748405557091,5.7237,174.63,174.6,5.76571244]
[1748405557990,5.76162816,174.64,174.6,5.76571244]
[1748405558491,5.76162816,174.64,174.61,5.7241]
[1748405558888,5.76162816,174.64,174.6,5.76551244]
[1748405559591,5.7236,174.63,174.6,5.76551244]
[1748405569800,5.76162816,174.64,174.61,5.7242]
[1748405570002,0.03832816,174.64,174.6,0.04121244]
[1748405570396,5.76172816,174.64,174.61,5.7241]
[1748405572899,5.7236,174.63,174.61,5.7241]
[1748405574394,5.76172816,174.64,174.61,5.7241]
[1748405577598,0.03832816,174.64,174.63,4.2463731]
[1748405578203,0.03832816,174.64,174.63,9.9698731]
[1748405580005,0.03832816,174.64,174.63,38.2698731]
[1748405583115,0.03832816,174.64,174.6,0.04121244]
[1748405583705,5.7242,174.61,174.6,0.04121244]
[1748405584212,5.724,174.62,174.6,0.04121244]
[1748405585109,5.7236,174.63,174.6,0.04121244]
[1748405585815,0.03832816,174.64,174.6,0.04121244]
[1748405586117,0.03832816,174.64,174.6,5.76571244]
[1748405586414,0.03832816,174.64,174.6,0.04121244]
[1748405586713,5.76162816,174.64,174.61,5.724]
[1748405587509,0.03832816,174.64,174.63,5.7235]
[1748405589418,0.03832816,174.64,174.63,34.0235]
[1748405591617,0.03832816,174.64,174.63,28.3]
[1748405591914,5.76152816,174.64,174.63,28.3]
[1748405592110,0.03832816,174.64,174.6,38.31188554]
[1748405592815,5.7236,174.63,174.6,38.31188554]
[1748405593410,5.7236,174.63,174.61,5.7242]
[1748405593818,5.76162816,174.64,174.61,5.7242]
[1748405594118,5.76162816,174.64,174.62,5.7238]
[1748405594321,0.03832816,174.64,174.62,5.7238]
[1748405595111,5.76152816,174.64,174.61,5.7241]
[1748405597311,0.03832816,174.64,174.61,5.7241]
[1748405597914,0.03832816,174.64,174.62,5.7239]
[1748405602321,0.03832816,174.64,174.63,5.7235]
[1748405628635,0.03832816,174.64,174.63,34.0035]
[1748405642544,0.03832816,174.64,174.63,28.28]
[1748405643048,0.03832816,174.64,174.62,5.7236]
[1748405645840,5.76152816,174.64,174.62,5.7236]
[1748405646353,5.76152816,174.64,174.61,38.2305731]
[1748405648750,5.7239,174.62,174.61,28.26]
[1748405648951,0.03832816,174.64,174.6,0.04121244]
[1748405649847,5.7242,174.61,174.6,0.04121244]
[1748405652762,5.724,174.62,174.6,0.04121244]
[1748405652959,0.03832816,174.64,174.6,4.28758554]
[1748405653565,0.03832816,174.64,174.62,5.7236]
[1748405655266,0.03832816,174.64,174.63,5.7235]
[1748405660969,0.03832816,174.64,174.62,38.2300731]
[1748405661766,0.03832816,174.64,174.62,33.9837]
[1748405667574,224.2012731,174.73,174.63,4.2463731]
[1748405667875,219.9549,174.73,174.68,4.2463731]
[1748405668183,28.26,174.75,174.68,4.2463731]
[1748405668481,5.76053686,174.73,174.7,0.0394141]
[1748405669575,5.7207,174.72,174.7,0.0394141]
[1748405670466,5.7209,174.71,174.7,0.0394141]
[1748405678086,227.9670731,174.72,174.7,0.0394141]
[1748405678286,223.7207,174.72,174.7,0.0394141]
[1748405678881,5.7209,174.71,174.7,0.0394141]
[1748405686591,218.0,174.72,174.7,5.7606141]
[1748405686891,218.0,174.72,174.7,0.0394141]
[1748405687190,223.7207,174.72,174.7,0.0394141]
[1748405695799,5.7209,174.71,174.7,0.0394141]
[1748405699804,223.7207,174.72,174.7,0.0394141]
[1748405700509,218.0,174.72,174.7,5.7606141]
[1748405702409,218.0,174.72,174.7,0.0394141]
[1748405703316,218.0,174.72,174.7,5.7606141]
[1748405703509,218.0,174.72,174.7,4.2857872]
[1748405704013,218.0,174.72,174.71,5.7209]
[1748405706414,218.0,174.72,174.71,33.9409]
[1748405707008,0.04013686,174.73,174.72,5.7206]
[1748405707214,0.04013686,174.73,174.72,9.9669731]
[1748405711809,0.04013686,174.73,174.72,4.2463731]
[1748405714414,0.04013686,174.73,174.72,9.9669731]
[1748405725115,218.0,174.82,174.72,4.2463731]
[1748405725315,218.0,174.82,174.77,4.2463731]
[1748405726025,5.7183,174.79,174.78,0.03778232]
[1748405727122,0.04068316,174.81,174.78,0.03778232]
[1748405728121,0.04068316,174.81,174.79,4.2463731]
[1748405728827,0.04068316,174.81,174.79,9.9645731]
[1748405729228,0.04068316,174.81,174.79,4.2463731]
[1748405729724,0.04068316,174.81,174.79,9.9645731]
[1748405732429,0.04068316,174.81,174.8,28.2]
[1748405732731,0.04068316,174.81,174.8,33.918]
[1748405733328,0.04068316,174.81,174.8,28.2]
[1748405735824,5.75828316,174.81,174.8,28.2]
[1748405736735,0.04068316,174.81,174.8,28.2]
[1748405737330,0.04068316,174.81,174.8,33.918]
[1748405738043,0.04068316,174.81,174.8,28.2]
[1748405739034,0.04068316,174.81,174.78,0.03778232]